[Event "*** Titled Tuesday Blitz"]
[Site "Chess.com"]
[Date "2021.03.16"]
[Round "11"]
[White "CSB7"]
[Black "alexrustemov"]
[Result "1-0"]
[WhiteElo "2634"]
[BlackElo "2759"]
[TimeControl "180+1"]
[EndTime "12:04:56 PDT"]
[Termination "CSB7 won by checkmate"]

1. d4 {[%clk 0:03:00.9]} 1... g6 {[%clk 0:02:59.6]} 2. c4 {[%clk 0:02:58.2]}
2... Bg7 {[%clk 0:03:00]} 3. e4 {[%clk 0:02:58.7]} 3... c5 {[%clk 0:02:57.8]} 4.
d5 {[%clk 0:02:58.4]} 4... d6 {[%clk 0:02:56.1]} 5. Nc3 {[%clk 0:02:58.2]} 5...
e5 {[%clk 0:02:54.5]} 6. Be2 {[%clk 0:02:53.9]} 6... Bh6 {[%clk 0:02:45.5]} 7.
Bg4 {[%clk 0:02:31]} 7... Bxc1 {[%clk 0:02:41.7]} 8. Rxc1 {[%clk 0:02:31.9]}
8... Nd7 {[%clk 0:02:36.5]} 9. Nf3 {[%clk 0:02:21.9]} 9... Ngf6 {[%clk 0:02:35]}
10. Bh3 {[%clk 0:02:14.6]} 10... O-O {[%clk 0:02:32.1]} 11. O-O {[%clk
0:02:08.1]} 11... a6 {[%clk 0:02:31.9]} 12. a4 {[%clk 0:01:43.2]} 12... Nh5
{[%clk 0:02:25.2]} 13. g3 {[%clk 0:01:39.6]} 13... Ng7 {[%clk 0:02:17.7]} 14.
Qd2 {[%clk 0:01:14.6]} 14... Nf6 {[%clk 0:02:06.6]} 15. Bxc8 {[%clk 0:01:10.1]}
15... Qxc8 {[%clk 0:02:07]} 16. Ne1 {[%clk 0:01:00.9]} 16... Rb8 {[%clk
0:01:57.4]} 17. Nd3 {[%clk 0:00:59.4]} 17... b6 {[%clk 0:01:55]} 18. f4 {[%clk
0:00:50.9]} 18... exf4 {[%clk 0:01:50.9]} 19. Qxf4 {[%clk 0:00:46.7]} 19... Nfe8
{[%clk 0:01:45.7]} 20. e5 {[%clk 0:00:42.1]} 20... dxe5 {[%clk 0:01:40]} 21.
Nxe5 {[%clk 0:00:40]} 21... Qc7 {[%clk 0:01:38.7]} 22. Nc6 {[%clk 0:00:32.6]}
22... Qxf4 {[%clk 0:01:35.9]} 23. Rxf4 {[%clk 0:00:33.5]} 23... Rb7 {[%clk
0:01:36.2]} 24. Re1 {[%clk 0:00:28]} 24... Nf5 {[%clk 0:01:31]} 25. g4 {[%clk
0:00:23.6]} 25... Nfd6 {[%clk 0:01:28.8]} 26. b3 {[%clk 0:00:19]} 26... Kg7
{[%clk 0:01:27]} 27. Ne4 {[%clk 0:00:17.9]} 27... f5 {[%clk 0:01:22.5]} 28. Ng5
{[%clk 0:00:14.4]} 28... Kg8 {[%clk 0:01:11.6]} 29. Ne6 {[%clk 0:00:13.7]} 29...
Rff7 {[%clk 0:01:11]} 30. Ned8 {[%clk 0:00:13.1]} 30... g5 {[%clk 0:01:08.8]}
31. Rf2 {[%clk 0:00:10.1]} 31... fxg4 {[%clk 0:01:02.9]} 32. Nxb7 {[%clk
0:00:10]} 32... Rxb7 {[%clk 0:01:01.6]} 33. Ne7+ {[%clk 0:00:07.7]} 33... Kg7
{[%clk 0:01:00.4]} 34. Nf5+ {[%clk 0:00:08]} 34... Nxf5 {[%clk 0:00:59.5]} 35.
Rxf5 {[%clk 0:00:08.9]} 35... Kg6 {[%clk 0:00:44.8]} 36. Rfe5 {[%clk 0:00:08.9]}
36... Ng7 {[%clk 0:00:38.8]} 37. Re7 {[%clk 0:00:08.4]} 37... Rb8 {[%clk
0:00:37.7]} 38. Ra7 {[%clk 0:00:06.2]} 38... a5 {[%clk 0:00:36.8]} 39. Ree7
{[%clk 0:00:05]} 39... Nf5 {[%clk 0:00:34.3]} 40. Re6+ {[%clk 0:00:05.1]} 40...
Kh5 {[%clk 0:00:28.4]} 41. Rxh7+ {[%clk 0:00:04.5]} 41... Nh6 {[%clk 0:00:27.5]}
42. Rhxh6# {[%clk 0:00:04.1]} 1-0

[Event "*** Titled Tuesday Blitz"]
[Site "Chess.com"]
[Date "2021.03.16"]
[Round "11"]
[White "zajka-molotok"]
[Black "BogdanDeac"]
[Result "0-1"]
[WhiteElo "2555"]
[BlackElo "2966"]
[TimeControl "180+1"]
[EndTime "12:04:57 PDT"]
[Termination "BogdanDeac won on time"]

1. d4 {[%clk 0:03:00.9]} 1... Nf6 {[%clk 0:02:59.5]} 2. Bf4 {[%clk 0:03:00.2]}
2... d5 {[%clk 0:02:58.1]} 3. e3 {[%clk 0:02:59.9]} 3... c5 {[%clk 0:02:58.4]}
4. c3 {[%clk 0:02:58.8]} 4... Nc6 {[%clk 0:02:57.8]} 5. Nd2 {[%clk 0:02:58.2]}
5... e6 {[%clk 0:02:58.1]} 6. Ngf3 {[%clk 0:02:55.9]} 6... cxd4 {[%clk
0:02:57.9]} 7. exd4 {[%clk 0:02:55.5]} 7... Nh5 {[%clk 0:02:58.1]} 8. Be3 {[%clk
0:02:51.2]} 8... Bd6 {[%clk 0:02:57.4]} 9. Ne5 {[%clk 0:02:48.1]} 9... g6 {[%clk
0:02:57.1]} 10. Nd3 {[%clk 0:02:46.9]} 10... Qc7 {[%clk 0:02:52]} 11. g3 {[%clk
0:02:45.3]} 11... O-O {[%clk 0:02:50.6]} 12. Bg2 {[%clk 0:02:40.1]} 12... b6
{[%clk 0:02:50.9]} 13. O-O {[%clk 0:02:38.4]} 13... Bb7 {[%clk 0:02:51.2]} 14.
Re1 {[%clk 0:02:24.9]} 14... Rad8 {[%clk 0:02:49]} 15. Nf3 {[%clk 0:02:22.7]}
15... f6 {[%clk 0:02:47.1]} 16. Nd2 {[%clk 0:01:46.2]} 16... Ng7 {[%clk
0:02:40.2]} 17. Bh3 {[%clk 0:01:42.9]} 17... e5 {[%clk 0:02:36.1]} 18. Rc1
{[%clk 0:01:16.8]} 18... Qf7 {[%clk 0:02:30.7]} 19. Bg2 {[%clk 0:00:58.7]} 19...
e4 {[%clk 0:02:27.1]} 20. Nf4 {[%clk 0:00:55.3]} 20... f5 {[%clk 0:02:26.5]} 21.
c4 {[%clk 0:00:54.9]} 21... Bxf4 {[%clk 0:02:20.4]} 22. gxf4 {[%clk 0:00:51.6]}
22... Ne6 {[%clk 0:02:16.8]} 23. cxd5 {[%clk 0:00:44.9]} 23... Rxd5 {[%clk
0:02:17.7]} 24. Nb3 {[%clk 0:00:40]} 24... a5 {[%clk 0:02:10.4]} 25. Bf1 {[%clk
0:00:37.7]} 25... Ne7 {[%clk 0:01:54.5]} 26. Bc4 {[%clk 0:00:36.7]} 26... Rdd8
{[%clk 0:01:52.9]} 27. a4 {[%clk 0:00:32]} 27... Bd5 {[%clk 0:01:49.7]} 28. Nd2
{[%clk 0:00:29.7]} 28... g5 {[%clk 0:01:19.9]} 29. fxg5 {[%clk 0:00:13.9]} 29...
f4 {[%clk 0:01:18.5]} 30. Bxd5 {[%clk 0:00:13.2]} 30... Nxd5 {[%clk 0:01:13.8]}
31. Nxe4 {[%clk 0:00:12.8]} 31... fxe3 {[%clk 0:01:13.6]} 32. fxe3 {[%clk
0:00:13.7]} 32... Qf5 {[%clk 0:01:13.5]} 33. Qd3 {[%clk 0:00:10.1]} 33... Nxg5
{[%clk 0:01:08.6]} 34. Rf1 {[%clk 0:00:07.1]} 34... Qxe4 {[%clk 0:01:05.3]} 35.
Rxf8+ {[%clk 0:00:06.6]} 35... Rxf8 {[%clk 0:01:06.2]} 36. Qxe4 {[%clk
0:00:07.2]} 36... Nxe4 {[%clk 0:01:06.2]} 37. Rc6 {[%clk 0:00:06.8]} 37... Nxe3
{[%clk 0:01:05.7]} 38. h4 {[%clk 0:00:05.4]} 38... Rf6 {[%clk 0:00:58.4]} 39.
Rc8+ {[%clk 0:00:04]} 39... Kf7 {[%clk 0:00:56.8]} 40. Rc7+ {[%clk 0:00:04.7]}
40... Kg6 {[%clk 0:00:53.6]} 41. h5+ {[%clk 0:00:05.1]} 41... Kxh5 {[%clk
0:00:50.4]} 42. Rxh7+ {[%clk 0:00:05]} 42... Kg4 {[%clk 0:00:50.7]} 43. Rg7+
{[%clk 0:00:04.9]} 43... Kf3 {[%clk 0:00:50.1]} 44. d5 {[%clk 0:00:03.4]} 44...
Nxd5 {[%clk 0:00:46.3]} 45. Rg8 {[%clk 0:00:02.5]} 45... Nf4 {[%clk 0:00:45.8]}
46. b3 {[%clk 0:00:01.7]} 46... Rd6 {[%clk 0:00:43.1]} 47. Kh2 {[%clk
0:00:01.2]} 47... Rh6+ {[%clk 0:00:42.9]} 48. Kg1 {[%clk 0:00:01.6]} 48... Ne2+
{[%clk 0:00:43.8]} 0-1

[Event "*** Titled Tuesday Blitz"]
[Site "Chess.com"]
[Date "2021.03.16"]
[Round "11"]
[White "Manukyan_Artak"]
[Black "Vandros57"]
[Result "1-0"]
[WhiteElo "2372"]
[BlackElo "2204"]
[TimeControl "180+1"]
[EndTime "12:05:01 PDT"]
[Termination "Manukyan_Artak won on time"]

1. e4 {[%clk 0:02:58]} 1... c5 {[%clk 0:02:58.8]} 2. Nf3 {[%clk 0:02:57.4]} 2...
e6 {[%clk 0:02:57.5]} 3. c3 {[%clk 0:02:56.2]} 3... d5 {[%clk 0:02:53.2]} 4. e5
{[%clk 0:02:56]} 4... Bd7 {[%clk 0:02:49.7]} 5. d4 {[%clk 0:02:55.6]} 5... Qb6
{[%clk 0:02:45.4]} 6. a3 {[%clk 0:02:53.2]} 6... a5 {[%clk 0:02:40.5]} 7. Be2
{[%clk 0:02:46.1]} 7... a4 {[%clk 0:02:36.5]} 8. O-O {[%clk 0:02:44.3]} 8... Bb5
{[%clk 0:02:34.2]} 9. Nbd2 {[%clk 0:02:39.1]} 9... Bxe2 {[%clk 0:02:32]} 10.
Qxe2 {[%clk 0:02:40]} 10... cxd4 {[%clk 0:02:30.1]} 11. Nxd4 {[%clk 0:02:39.2]}
11... Nc6 {[%clk 0:02:22.5]} 12. N2f3 {[%clk 0:02:37.4]} 12... Bc5 {[%clk
0:02:17.6]} 13. Be3 {[%clk 0:02:30.2]} 13... Bxd4 {[%clk 0:02:15.9]} 14. Bxd4
{[%clk 0:02:29]} 14... Nxd4 {[%clk 0:02:13.6]} 15. Nxd4 {[%clk 0:02:27.8]} 15...
Ne7 {[%clk 0:02:11.5]} 16. Qb5+ {[%clk 0:02:21.2]} 16... Qxb5 {[%clk 0:02:05.9]}
17. Nxb5 {[%clk 0:02:22.1]} 17... Kd7 {[%clk 0:01:55.8]} 18. f4 {[%clk
0:02:04.8]} 18... Ra6 {[%clk 0:01:34.7]} 19. Nd6 {[%clk 0:01:55.7]} 19... Rxd6
{[%clk 0:01:33.8]} 20. exd6 {[%clk 0:01:55.4]} 20... Kxd6 {[%clk 0:01:33.5]} 21.
b3 {[%clk 0:01:50.6]} 21... b5 {[%clk 0:01:27.6]} 22. bxa4 {[%clk 0:01:49]}
22... bxa4 {[%clk 0:01:26.8]} 23. Rab1 {[%clk 0:01:49.9]} 23... Rc8 {[%clk
0:01:16.2]} 24. Rb6+ {[%clk 0:01:41.3]} 24... Kd7 {[%clk 0:01:00.7]} 25. Rb7+
{[%clk 0:01:39.1]} 25... Kd6 {[%clk 0:00:59.9]} 26. Rb6+ {[%clk 0:01:12.3]}
26... Kd7 {[%clk 0:00:58.8]} 27. Ra6 {[%clk 0:01:08.3]} 27... Rxc3 {[%clk
0:00:57]} 28. Rxa4 {[%clk 0:01:08.5]} 28... Nc6 {[%clk 0:00:49.6]} 29. Ra1
{[%clk 0:00:59]} 29... d4 {[%clk 0:00:48.5]} 30. Kf2 {[%clk 0:00:53.3]} 30...
Rc2+ {[%clk 0:00:43.4]} 31. Kf3 {[%clk 0:00:53.2]} 31... f5 {[%clk 0:00:35.8]}
32. Rd1 {[%clk 0:00:46.7]} 32... Kd6 {[%clk 0:00:33.4]} 33. Ra8 {[%clk
0:00:45.8]} 33... Kd5 {[%clk 0:00:25.3]} 34. a4 {[%clk 0:00:43.1]} 34... Rc3+
{[%clk 0:00:24.8]} 35. Kf2 {[%clk 0:00:42.3]} 35... Ke4 {[%clk 0:00:17.2]} 36.
Re8 {[%clk 0:00:38.2]} 36... Kxf4 {[%clk 0:00:13.1]} 37. Rxe6 {[%clk 0:00:37.9]}
37... d3 {[%clk 0:00:12.3]} 38. g3+ {[%clk 0:00:30.6]} 38... Kg5 {[%clk
0:00:11.6]} 39. Ke3 {[%clk 0:00:27.7]} 39... Ra3 {[%clk 0:00:08]} 40. Rxd3
{[%clk 0:00:24.7]} 40... Rxd3+ {[%clk 0:00:01.5]} 41. Kxd3 {[%clk 0:00:25.6]}
1-0

[Event "*** Titled Tuesday Blitz"]
[Site "Chess.com"]
[Date "2021.03.16"]
[Round "11"]
[White "Babas"]
[Black "tylityli"]
[Result "0-1"]
[WhiteElo "2390"]
[BlackElo "2305"]
[TimeControl "180+1"]
[EndTime "12:05:03 PDT"]
[Termination "tylityli won on time"]

1. d4 {[%clk 0:02:57.9]} 1... Nf6 {[%clk 0:02:58.3]} 2. Nf3 {[%clk 0:02:57.3]}
2... d5 {[%clk 0:02:58]} 3. c4 {[%clk 0:02:23.3]} 3... dxc4 {[%clk 0:02:56.8]}
4. Nc3 {[%clk 0:02:22.7]} 4... a6 {[%clk 0:02:54.4]} 5. a4 {[%clk 0:02:21.9]}
5... e6 {[%clk 0:02:49.5]} 6. e4 {[%clk 0:02:17.2]} 6... c5 {[%clk 0:02:49.5]}
7. d5 {[%clk 0:02:06.9]} 7... exd5 {[%clk 0:02:47.9]} 8. exd5 {[%clk 0:02:07.8]}
8... Bg4 {[%clk 0:02:46.2]} 9. Bxc4 {[%clk 0:02:04.9]} 9... Bd6 {[%clk
0:02:42.3]} 10. h3 {[%clk 0:02:03]} 10... Bh5 {[%clk 0:02:40.3]} 11. g4 {[%clk
0:01:31]} 11... Bg6 {[%clk 0:02:38.6]} 12. O-O {[%clk 0:01:25.2]} 12... O-O
{[%clk 0:02:35.6]} 13. Nh4 {[%clk 0:01:04.7]} 13... Ne4 {[%clk 0:02:24.3]} 14.
Nxg6 {[%clk 0:00:58.9]} 14... Nxc3 {[%clk 0:02:23.9]} 15. bxc3 {[%clk
0:00:59.8]} 15... hxg6 {[%clk 0:02:16.1]} 16. Rb1 {[%clk 0:00:57.9]} 16... b6
{[%clk 0:01:56.5]} 17. Qf3 {[%clk 0:00:53.4]} 17... Nd7 {[%clk 0:01:55.2]} 18.
Bf4 {[%clk 0:00:50.9]} 18... Ne5 {[%clk 0:01:50.6]} 19. Bxe5 {[%clk 0:00:46.2]}
19... Bxe5 {[%clk 0:01:51.5]} 20. d6 {[%clk 0:00:30]} 20... Qxd6 {[%clk
0:01:48.9]} 21. Rfd1 {[%clk 0:00:25.1]} 21... Qc7 {[%clk 0:01:30.4]} 22. Qe4
{[%clk 0:00:22.8]} 22... Kh7 {[%clk 0:01:12.4]} 23. Rd3 {[%clk 0:00:20.3]} 23...
Rae8 {[%clk 0:01:06.4]} 24. Qf3 {[%clk 0:00:17.5]} 24... a5 {[%clk 0:00:55.5]}
25. Kg2 {[%clk 0:00:17.3]} 25... Bf6 {[%clk 0:00:53.1]} 26. Rbd1 {[%clk
0:00:16]} 26... Re7 {[%clk 0:00:48.6]} 27. Bb5 {[%clk 0:00:10.9]} 27... Qe5
{[%clk 0:00:41.8]} 28. Re3 {[%clk 0:00:09.7]} 28... Qc7 {[%clk 0:00:39.4]} 29.
Rxe7 {[%clk 0:00:10]} 29... Qxe7 {[%clk 0:00:37.5]} 30. Rd7 {[%clk 0:00:08.5]}
30... Qe5 {[%clk 0:00:37.1]} 31. c4 {[%clk 0:00:06.7]} 31... Kg8 {[%clk
0:00:33]} 32. Bc6 {[%clk 0:00:06.5]} 32... g5 {[%clk 0:00:26.5]} 33. Bd5 {[%clk
0:00:06.6]} 33... g6 {[%clk 0:00:24.8]} 34. Qd3 {[%clk 0:00:04.8]} 34... Kg7
{[%clk 0:00:24.4]} 35. Qf3 {[%clk 0:00:03.2]} 35... Qf4 {[%clk 0:00:20.8]} 36.
Qxf4 {[%clk 0:00:01.8]} 36... gxf4 {[%clk 0:00:21.7]} 37. Rb7 {[%clk 0:00:02.3]}
37... Bc3 {[%clk 0:00:20.6]} 38. Rxb6 {[%clk 0:00:02.3]} 38... Bb4 {[%clk
0:00:20.6]} 39. Rb7 {[%clk 0:00:02.2]} 39... g5 {[%clk 0:00:20.6]} 40. Kf3
{[%clk 0:00:02.4]} 40... Kf6 {[%clk 0:00:20.4]} 0-1

[Event "*** Titled Tuesday Blitz"]
[Site "Chess.com"]
[Date "2021.03.16"]
[Round "11"]
[White "Fortitudine"]
[Black "WilliamSchill"]
[Result "1/2-1/2"]
[WhiteElo "2264"]
[BlackElo "2145"]
[TimeControl "180+1"]
[EndTime "12:05:03 PDT"]
[Termination "Game drawn by repetition"]

1. c4 {[%clk 0:03:00.9]} 1... Nf6 {[%clk 0:02:59.3]} 2. g3 {[%clk 0:03:00.2]}
2... g6 {[%clk 0:02:59.4]} 3. Bg2 {[%clk 0:02:59.1]} 3... Bg7 {[%clk 0:02:59.6]}
4. Nc3 {[%clk 0:02:59.8]} 4... d6 {[%clk 0:02:59.2]} 5. e4 {[%clk 0:02:59.8]}
5... c5 {[%clk 0:02:56.5]} 6. d3 {[%clk 0:03:00.2]} 6... Nc6 {[%clk 0:02:56.5]}
7. Nge2 {[%clk 0:03:00.7]} 7... O-O {[%clk 0:02:55.9]} 8. O-O {[%clk 0:03:01.2]}
8... Bd7 {[%clk 0:02:56.1]} 9. h3 {[%clk 0:03:01.2]} 9... Ne8 {[%clk 0:02:55.7]}
10. Be3 {[%clk 0:03:00.5]} 10... Nd4 {[%clk 0:02:53.8]} 11. Qd2 {[%clk
0:02:59.4]} 11... Nc7 {[%clk 0:02:53.3]} 12. Bh6 {[%clk 0:02:59.4]} 12... Nce6
{[%clk 0:02:47]} 13. Bxg7 {[%clk 0:02:59.6]} 13... Kxg7 {[%clk 0:02:46.7]} 14.
f4 {[%clk 0:03:00.1]} 14... Rb8 {[%clk 0:02:45]} 15. f5 {[%clk 0:02:51.5]} 15...
Nxe2+ {[%clk 0:02:40.4]} 16. Nxe2 {[%clk 0:02:52.4]} 16... Nd4 {[%clk
0:02:40.4]} 17. Nxd4 {[%clk 0:02:45.6]} 17... cxd4 {[%clk 0:02:40.4]} 18. Qf2
{[%clk 0:02:07.7]} 18... Qb6 {[%clk 0:02:39.3]} 19. f6+ {[%clk 0:01:59.2]} 19...
exf6 {[%clk 0:02:39.4]} 20. Qxf6+ {[%clk 0:01:59.8]} 20... Kg8 {[%clk
0:02:40.1]} 21. Rab1 {[%clk 0:01:54.4]} 21... Qc5 {[%clk 0:02:36.1]} 22. b4
{[%clk 0:01:52.2]} 22... Qe5 {[%clk 0:02:36]} 23. c5 {[%clk 0:01:26.2]} 23...
Qxg3 {[%clk 0:02:00.8]} 24. Rf3 {[%clk 0:01:25.6]} 24... Qe5 {[%clk 0:02:00.6]}
25. cxd6 {[%clk 0:01:06.2]} 25... Qxf6 {[%clk 0:01:56.6]} 26. Rxf6 {[%clk
0:01:07.1]} 26... Be6 {[%clk 0:01:55.6]} 27. Rb2 {[%clk 0:00:59.4]} 27... Rbd8
{[%clk 0:01:43.1]} 28. e5 {[%clk 0:00:59.5]} 28... Rd7 {[%clk 0:01:35.6]} 29.
Rc2 {[%clk 0:00:47.6]} 29... Rfd8 {[%clk 0:01:35]} 30. a3 {[%clk 0:00:40.7]}
30... Kg7 {[%clk 0:01:34.7]} 31. b5 {[%clk 0:00:25.5]} 31... Rxd6 {[%clk
0:01:29.3]} 32. Rxf7+ {[%clk 0:00:20.5]} 32... Bxf7 {[%clk 0:01:16.9]} 33. exd6
{[%clk 0:00:21.1]} 33... Rxd6 {[%clk 0:01:17]} 34. Rc7 {[%clk 0:00:20.9]} 34...
Rb6 {[%clk 0:01:12.9]} 35. a4 {[%clk 0:00:21.1]} 35... a6 {[%clk 0:00:55.7]} 36.
Rxb7 {[%clk 0:00:21.1]} 36... Rxb7 {[%clk 0:00:54.4]} 37. Bxb7 {[%clk 0:00:22]}
37... axb5 {[%clk 0:00:54.6]} 38. axb5 {[%clk 0:00:22.1]} 38... Kf6 {[%clk
0:00:47.2]} 39. Kf2 {[%clk 0:00:18]} 39... Ke5 {[%clk 0:00:47]} 40. b6 {[%clk
0:00:15.6]} 40... Kd6 {[%clk 0:00:46]} 41. Be4 {[%clk 0:00:14.4]} 41... h6
{[%clk 0:00:41.5]} 42. Kg3 {[%clk 0:00:13.2]} 42... g5 {[%clk 0:00:41.5]} 43. h4
{[%clk 0:00:12.6]} 43... Be6 {[%clk 0:00:40.7]} 44. hxg5 {[%clk 0:00:12.5]}
44... hxg5 {[%clk 0:00:40.1]} 45. b7 {[%clk 0:00:11.4]} 45... Kc7 {[%clk
0:00:39.7]} 46. Bf3 {[%clk 0:00:11]} 46... Bd7 {[%clk 0:00:35.7]} 47. Bg4 {[%clk
0:00:09.4]} 47... Be8 {[%clk 0:00:35.1]} 48. Bf3 {[%clk 0:00:09.2]} 48... Bd7
{[%clk 0:00:34.9]} 49. Bg4 {[%clk 0:00:09.6]} 49... Be8 {[%clk 0:00:34.9]} 50.
Bf3 {[%clk 0:00:07.4]} 50... Bd7 {[%clk 0:00:34.9]} 1/2-1/2

[Event "*** Titled Tuesday Blitz"]
[Site "Chess.com"]
[Date "2021.03.16"]
[Round "11"]
[White "Andrakhanova"]
[Black "WiktoriaPOL"]
[Result "1-0"]
[WhiteElo "2232"]
[BlackElo "2096"]
[TimeControl "180+1"]
[EndTime "12:05:06 PDT"]
[Termination "Andrakhanova won on time"]

1. c4 {[%clk 0:02:59.3]} 1... Nf6 {[%clk 0:02:59.6]} 2. g3 {[%clk 0:02:57.7]}
2... g6 {[%clk 0:02:59.6]} 3. Bg2 {[%clk 0:02:57.3]} 3... Bg7 {[%clk 0:02:59.8]}
4. Nc3 {[%clk 0:02:57.9]} 4... O-O {[%clk 0:03:00]} 5. Nf3 {[%clk 0:02:58.4]}
5... d6 {[%clk 0:03:00.3]} 6. d4 {[%clk 0:02:58.7]} 6... Nc6 {[%clk 0:02:54.6]}
7. e4 {[%clk 0:02:57.5]} 7... Bg4 {[%clk 0:02:53.4]} 8. h3 {[%clk 0:02:56.8]}
8... Bxf3 {[%clk 0:02:53.1]} 9. Bxf3 {[%clk 0:02:57.7]} 9... e5 {[%clk
0:02:53.4]} 10. dxe5 {[%clk 0:02:48.7]} 10... dxe5 {[%clk 0:02:53.4]} 11. O-O
{[%clk 0:02:41.6]} 11... Nd4 {[%clk 0:02:52]} 12. Bg2 {[%clk 0:02:40.9]} 12...
c5 {[%clk 0:02:50.9]} 13. Be3 {[%clk 0:02:40.3]} 13... Qd7 {[%clk 0:02:48.8]}
14. Kh2 {[%clk 0:02:37.8]} 14... Rad8 {[%clk 0:02:44.9]} 15. Nd5 {[%clk
0:02:37.3]} 15... Nxd5 {[%clk 0:02:41.2]} 16. exd5 {[%clk 0:02:38.2]} 16... f5
{[%clk 0:02:38.4]} 17. Qd2 {[%clk 0:02:28.1]} 17... Rde8 {[%clk 0:02:29.8]} 18.
Rae1 {[%clk 0:02:23.8]} 18... Qd6 {[%clk 0:02:23.1]} 19. Bh6 {[%clk 0:02:21.5]}
19... Bxh6 {[%clk 0:02:14.5]} 20. Qxh6 {[%clk 0:02:22.4]} 20... f4 {[%clk
0:02:14.4]} 21. Re4 {[%clk 0:02:08.7]} 21... fxg3+ {[%clk 0:02:12.1]} 22. fxg3
{[%clk 0:02:01.2]} 22... Rxf1 {[%clk 0:02:10.8]} 23. Bxf1 {[%clk 0:02:01.9]}
23... Qf6 {[%clk 0:02:10.7]} 24. Bg2 {[%clk 0:01:57.8]} 24... Qf2 {[%clk
0:02:05]} 25. Qe3 {[%clk 0:01:52.6]} 25... Qxb2 {[%clk 0:02:00.6]} 26. h4 {[%clk
0:01:45.7]} 26... Qxa2 {[%clk 0:01:55.6]} 27. Kh3 {[%clk 0:01:45.3]} 27... Nf5
{[%clk 0:01:48.2]} 28. Qxc5 {[%clk 0:01:34.5]} 28... Qb3 {[%clk 0:01:42.1]} 29.
Rg4 {[%clk 0:01:28.7]} 29... Ne3 {[%clk 0:01:32.8]} 30. Rg5 {[%clk 0:01:05.5]}
30... Nxg2 {[%clk 0:01:25.2]} 31. Kxg2 {[%clk 0:01:02.8]} 31... Qc2+ {[%clk
0:01:24.2]} 32. Kh3 {[%clk 0:01:00.9]} 32... Qe4 {[%clk 0:01:14.7]} 33. h5
{[%clk 0:00:42.6]} 33... Rf8 {[%clk 0:01:02.3]} 34. d6 {[%clk 0:00:21.7]} 34...
Rf1 {[%clk 0:00:42.2]} 35. Qd5+ {[%clk 0:00:19.2]} 35... Qxd5 {[%clk 0:00:38.5]}
36. cxd5 {[%clk 0:00:20.1]} 36... Rd1 {[%clk 0:00:21.4]} 37. Rxe5 {[%clk
0:00:19.8]} 37... Kg7 {[%clk 0:00:10.8]} 38. d7 {[%clk 0:00:18.7]} 38... Rh1+
{[%clk 0:00:03.3]} 39. Kg2 {[%clk 0:00:17.8]} 39... Rd1 {[%clk 0:00:01.8]} 40.
d8=Q {[%clk 0:00:17.4]} 1-0

[Event "*** Titled Tuesday Blitz"]
[Site "Chess.com"]
[Date "2021.03.16"]
[Round "11"]
[White "Anton_Demchenko"]
[Black "Konavets"]
[Result "0-1"]
[WhiteElo "2885"]
[BlackElo "2952"]
[TimeControl "180+1"]
[EndTime "12:05:08 PDT"]
[Termination "Konavets won by checkmate"]

1. e4 {[%clk 0:03:00.9]} 1... a6 {[%clk 0:02:58.4]} 2. d4 {[%clk 0:02:59.6]}
2... b5 {[%clk 0:02:59]} 3. Bd3 {[%clk 0:02:58.7]} 3... Bb7 {[%clk 0:02:59.2]}
4. Nf3 {[%clk 0:02:58.2]} 4... e6 {[%clk 0:02:59.8]} 5. O-O {[%clk 0:02:57.9]}
5... Be7 {[%clk 0:03:00.5]} 6. Re1 {[%clk 0:02:53.4]} 6... Nf6 {[%clk
0:03:00.5]} 7. e5 {[%clk 0:02:45.9]} 7... Nd5 {[%clk 0:03:00.1]} 8. c3 {[%clk
0:02:40.8]} 8... d6 {[%clk 0:03:00.3]} 9. a4 {[%clk 0:02:32.6]} 9... dxe5 {[%clk
0:02:45.8]} 10. Nxe5 {[%clk 0:02:29.2]} 10... b4 {[%clk 0:02:40.2]} 11. Qg4
{[%clk 0:02:23.7]} 11... Bf6 {[%clk 0:02:26.2]} 12. Nd2 {[%clk 0:01:49.6]} 12...
Nd7 {[%clk 0:02:06.4]} 13. Nxd7 {[%clk 0:01:41.9]} 13... Qxd7 {[%clk 0:02:07.3]}
14. Ne4 {[%clk 0:01:42.1]} 14... Be7 {[%clk 0:02:07.7]} 15. Qh3 {[%clk
0:01:17.1]} 15... O-O-O {[%clk 0:01:52.5]} 16. Bd2 {[%clk 0:01:07.7]} 16... g5
{[%clk 0:01:07.7]} 17. Bc4 {[%clk 0:00:32.3]} 17... Nf4 {[%clk 0:00:55.8]} 18.
Bxf4 {[%clk 0:00:31.8]} 18... gxf4 {[%clk 0:00:56.7]} 19. Qd3 {[%clk 0:00:32.4]}
19... Qc6 {[%clk 0:00:47]} 20. f3 {[%clk 0:00:33]} 20... Rhg8 {[%clk 0:00:44.8]}
21. Kh1 {[%clk 0:00:29.1]} 21... Kb8 {[%clk 0:00:43.1]} 22. cxb4 {[%clk
0:00:26]} 22... Bxb4 {[%clk 0:00:41.4]} 23. Rec1 {[%clk 0:00:26.6]} 23... Qb6
{[%clk 0:00:41.9]} 24. a5 {[%clk 0:00:23.6]} 24... Qxd4 {[%clk 0:00:41.7]} 25.
Qe2 {[%clk 0:00:17.9]} 25... f5 {[%clk 0:00:34.3]} 26. Bxa6 {[%clk 0:00:18.4]}
26... Bxe4 {[%clk 0:00:13.5]} 27. fxe4 {[%clk 0:00:06.5]} 27... Qxe4 {[%clk
0:00:14.4]} 28. Qf1 {[%clk 0:00:04.1]} 28... c6 {[%clk 0:00:10.8]} 29. Ra4
{[%clk 0:00:03.1]} 29... Rd4 {[%clk 0:00:10.8]} 30. Be2 {[%clk 0:00:01.8]} 30...
Qe3 {[%clk 0:00:10.3]} 31. Bf3 {[%clk 0:00:01.6]} 31... e5 {[%clk 0:00:09.7]}
32. a6 {[%clk 0:00:01.2]} 32... e4 {[%clk 0:00:09.1]} 33. a7+ {[%clk 0:00:01.5]}
33... Ka8 {[%clk 0:00:09.7]} 34. Bh5 {[%clk 0:00:01.6]} 34... Qd3 {[%clk
0:00:09.2]} 35. Bf7 {[%clk 0:00:01.1]} 35... Qxf1+ {[%clk 0:00:09.1]} 36. Rxf1
{[%clk 0:00:02]} 36... Rgd8 {[%clk 0:00:09.3]} 37. Be6 {[%clk 0:00:02.5]} 37...
e3 {[%clk 0:00:09.2]} 38. Bxf5 {[%clk 0:00:01.2]} 38... e2 {[%clk 0:00:09.8]}
39. Rg1 {[%clk 0:00:01.5]} 39... Rd1 {[%clk 0:00:09.7]} 40. Bg4 {[%clk
0:00:01.1]} 40... Rxg1+ {[%clk 0:00:09.9]} 41. Kxg1 {[%clk 0:00:02]} 41... e1=Q#
{[%clk 0:00:10.8]} 0-1